[Event "Test Tournament"]
[Site "Emanuel Lasker Arena"]
[Date "2024.04.09"]
[Round "1"]
[White "CarlsenVomFach"]
[Black "Stratospheric"]
[Result "1-0"]
[WhiteElo "2230"]
[BlackElo "1620"]
[Annotator "RC"]
[PlyCount "27"]
[EventDate "2024.04.09"]
[EventType "swiss (blitz)"]
[TimeControl "60"]

1. e4 {[%emt 0:00:01]} e5 {[%emt 0:00:01]} 2. Nf3 {[%emt 0:00:01]} Nc6 {[%emt 0:00:01]} 3. Bb5 {[%emt 0:00:01]} Nf6 {[%emt 0:00:01]} 4. O-O {[%emt 0:00:01]} Nxe4 {[%emt 0:00:01]} 5. d4 {[%emt 0:00:01]} Nd6 {[%emt 0:00:00]} 6. Bxc6 {[%emt 0:00:01]} dxc6 {[%emt 0:00:01]} 7. dxe5 {[%emt 0:00:01]} Nf5 {[%emt 0:00:01]} 8. Qxd8+ {[%emt 0:00:01]} Kxd8 {[%emt 0:00:01]} 9. Nc3 {[%emt 0:00:01]} Ke8 {[%emt 0:00:01]} 10. Rd1 {[%emt 0:00:01]} Be6 {[%emt 0:00:01]} 11. Ng5 {[%emt 0:00:01]} Bc8 {[%emt 0:00:01]} 12. Nf3 {[%emt 0:00:01]} Be6 {[%emt 0:00:01]} 13. Ng5 {[%emt 0:00:01]} Bc8 {[%emt 0:00:01]} 14. Nf3 {[%emt 0:00:01] (Lag: Av=0.05s, max=0.1s)} 1-0

[Event "Test Tournament"]
[Site "Emanuel Lasker Arena"]
[Date "2024.04.09"]
[Round "1"]
[White "Churchill"]
[Black "Zimtowitch"]
[Result "0-1"]
[WhiteElo "1620"]
[BlackElo "1896"]
[Annotator "NA RC"]
[PlyCount "26"]
[EventDate "2024.04.09"]
[EventType "swiss (blitz)"]
[TimeControl "60"]

1. d4 {[%emt 0:00:01]} d5 {[%emt 0:00:01]} 2. c4 {[%emt 0:00:02]} e6 {[%emt 0:00:01]} 3. Nc3 {[%emt 0:00:01]} c5 {[%emt 0:00:01]} 4. cxd5 {[%emt 0:00:02]} exd5 {[%emt 0:00:01]} 5. Nf3 {[%emt 0:00:01]} Nc6 {[%emt 0:00:01]} 6. e3 {[%emt 0:00:01]} Nf6 {[%emt 0:00:01]} 7. Be2 {[%emt 0:00:01]} cxd4 {[%emt 0:00:01]} 8. Nxd4 {[%emt 0:00:01]} Bd6 {[%emt 0:00:01]} 9. Qb3 {[%emt 0:00:06]} a6 {[%emt 0:00:01]} 10. Nxd5 {[%emt 0:00:01]} Nxd5 {[%emt 0:00:01]} 11. O-O {[%emt 0:00:04]} O-O {[%emt 0:00:04]} 12. a4 {[%emt 0:00:03]} Qh4 {[%emt 0:00:05]} 13. Qxd5 {[%emt 0:00:02]} Qxh2# {[%emt 0:00:03] (Lag: Av=0.05s, max=0.1s)} 0-1

[Event "Test Tournament"]
[Site "Emanuel Lasker Arena"]
[Date "2024.04.09"]
[Round "2"]
[White "Thomas Kydd"]
[Black "Local Hero"]
[Result "1-0"]
[WhiteElo "2405"]
[BlackElo "1983"]
[Annotator "TA"]
[PlyCount "71"]
[EventDate "2024.04.09"]
[EventType "swiss (blitz)"]
[TimeControl "60"]

{[%evp 15,70,31,34,36,29,37,46,10,33,38,31,-52,37,30,45,41,47,43,90,62,69,64,72,116,251,120,133,110,389,175,233,185,441,439,435,441,439,437,609,477,494,446,457,470,29994,1406,2646,2407,29999,29986,29994,29995,29995,29996,29998,29999,29999]} 1. e4 {[%emt 0:00:01]} e5 {[%emt 0:00:01]} 2. Nf3 {[%emt 0:00:01]} Nc6 {[%emt 0:00:01]} 3. Bb5 {[%emt 0:00:01]} a6 {[%emt 0:00:01]} 4. Ba4 {[%emt 0:00:01]} d6 {[%emt 0:00:01]} 5. c3 {[%emt 0:00:01]} Bd7 {[%emt 0:00:01]} 6. O-O {[%emt 0:00:01]} g6 {[%emt 0:00:01]} 7. d4 {[%emt 0:00:01][%cal Bd2d4,Bd4d5][%mdl 32]} Bg7 {[%emt 0:00:01]} 8. Re1 {[%emt 0:00:01]} Nf6 {[%emt 0:00:01]} 9. d5 {[%emt 0:00:01]} Ne7 {[%emt 0:00:01]} 10. Bxd7+ {[%emt 0:00:01]} Nxd7 {[%emt 0:00:01]} 11. Be3 {[%emt 0:00:01] White is slightly better.} h6 {[%emt 0:00:01]} 12. Nfd2 {[%emt 0:00:00]} f5 {[%emt 0:00:01] White must now prevent ...f4.} 13. exf5 {[%emt 0:00:01]} ({White should play} 13. f3 $1 $14) 13... Nxf5 {[%emt 0:00:01]} ({Black should try} 13... gxf5 $15 14. Qh5+ Kf8) 14. c4 {[%emt 0:00:02]} Qh4 {[%emt 0:00:02]} 15. Nc3 {[%emt 0:00:04]} O-O {[%emt 0:00:04]} 16. Nce4 {[%emt 0:00:04]} Nd4 {[%emt 0:00:03]} (16... a5 $14 {feels stronger.}) 17. a4 {[%emt 0:00:06]} Rae8 {[%emt 0:00:07]} 18. b4 {[%emt 0:00:03]} Nb6 {[%emt 0:00:03][%cal Ob6c4]} 19. Rc1 {[%emt 0:00:03]} Rf7 {[%emt 0:00:02] [#]} (19... Nc8 $16 {keeps fighting.} 20. a5 Nf5) 20. a5 {[%emt 0:00:02]} (20. Bxd4 $1 $18 {and the rest is easy.} exd4 21. Nf6+ Qxf6 22. Rxe8+ Kh7 23. Nf3) 20... Nd7 $16 {[%emt 0:00:02][%cal Bb6d7,Bd7f6,Bf6e8,Be8g7][%mdl 32]} 21. c5 {[%emt 0:00:02]} Bf8 {[%emt 0:00:02][%mdl 8192]} (21... Nb5 $16 22. Qc2 Ref8) 22. cxd6 {[%emt 0:00:02]} (22. c6 $142 bxc6 23. dxc6) 22... Bxd6 {[%emt 0:00:01]} (22... cxd6 {is a better defense.} 23. Rc7 Qd8) 23. g3 $36 {[%emt 0:00:02][%mdl 2048] Black is under strong pressure.} Qh3 {[%emt 0:00:01]} (23... Qd8 24. Qg4 (24. Bxh6 Bxb4 25. Bg5 Qc8 $18) 24... Bxb4) 24. Nxd6 $18 {[%emt 0:00:01]} cxd6 {[%emt 0:00:01]} 25. Bxd4 {[%emt 0:00:01]} Nf6 {[%emt 0:00:03][%cal Oe8f8] [#]} 26. Qc2 $1 {[%emt 0:00:01]} exd4 {[%emt 0:00:01]} (26... Kg7 27. Ne4) 27. Rxe8+ {[%emt 0:00:01]} Nxe8 {[%emt 0:00:01]} 28. Qxg6+ {[%emt 0:00:01]} Ng7 {[%emt 0:00:01]} 29. Re1 {[%emt 0:00:01] Threatening mate with Re8+.} ({But not} 29. Qxd6 Qf5 30. f4 (30. Qxh6 Qxf2+ 31. Kh1 d3 $18) 30... Qd3 $18) 29... Rxf2 {[%emt 0:00:01]} (29... Qf5 $18 30. Re8+ (30. Qxd6 {gets mated.} Qxf2+ 31. Kh1 Qxe1+ 32. Kg2 Qxd2+ 33. Kh3 Qg5 34. Kg2 Qf5 35. Qb8+ Kh7 36. Qf4 Qxd5+ 37. Kf1 Rxf4+ 38. gxf4 d3 39. Kg1 d2 40. h3 d1=Q+ 41. Kh2 Qe2+ 42. Kg3 Nf5#) 30... Rf8 31. Rxf8+ (31. Qxd6 {is a self mate.} Qxf2+ 32. Kh1 Rxe8) 31... Qxf8 32. Qxh6 Qe7) 30. Kxf2 {[%emt 0:00:01]} (30. Re8+ $142 Rf8 31. Re7 Qxh2+ 32. Kxh2 Rf2+ 33. Kg1 Rf1+ 34. Kxf1 Kh8 35. Qxg7#) 30... Qxh2+ {[%emt 0:00:01]} 31. Kf3 {[%emt 0:00:01][%csl Gg6][%cal Re1e8]} Qxd2 {[%emt 0:00:01]} 32. Re7 {[%emt 0:00:01][%csl Ge7][%cal Rg6g7] White mates.} Qc3+ {[%emt 0:00:01]} 33. Kg2 {[%emt 0:00:01][%csl Ge7][%cal Rg6g7]} Qc2+ {[%emt 0:00:01]} 34. Qxc2 {[%emt 0:00:01]} Kh8 {[%emt 0:00:01]} 35. Qg6 {[%emt 0:00:01][%csl Ge7][%cal Rg6g7]} Kg8 {[%emt 0:00:01]} 36. Qxg7# {[%emt 0:00:01] Weighted Error Value: White=0.33/Black=0.84.  Loses game:     	---       	Black=1      Mistake:       	White=4     	Black=6      Inaccurate:     	White=2     	Black=2      OK:         	White=5     	Black=3      Best:        	White=2     	Black=1} 1-0

[Event "Test Tournament"]
[Site "Emanuel Lasker Arena"]
[Date "2024.04.09"]
[Round "2"]
[White "Leuwe"]
[Black "Antonella"]
[Result "1-0"]
[WhiteElo "2285"]
[BlackElo "2040"]
[Annotator "RC"]
[PlyCount "53"]
[EventDate "2024.04.09"]
[EventType "swiss (blitz)"]
[TimeControl "60"]

1. d4 {[%emt 0:00:01]} Nf6 {[%emt 0:00:01]} 2. c4 {[%emt 0:00:01]} e6 {[%emt 0:00:01]} 3. Nc3 {[%emt 0:00:01]} Bb4 {[%emt 0:00:01]} 4. e3 {[%emt 0:00:01]} O-O {[%emt 0:00:01]} 5. Bd3 {[%emt 0:00:01]} c5 {[%emt 0:00:01]} 6. Nf3 {[%emt 0:00:01]} d5 {[%emt 0:00:01]} 7. O-O {[%emt 0:00:01]} Nc6 {[%emt 0:00:01]} 8. a3 {[%emt 0:00:00]} Bxc3 {[%emt 0:00:01]} 9. bxc3 {[%emt 0:00:01]} Qc7 {[%emt 0:00:01]} 10. cxd5 {[%emt 0:00:01]} exd5 {[%emt 0:00:01]} 11. a4 {[%emt 0:00:01]} Bg4 {[%emt 0:00:01]} 12. Ba3 {[%emt 0:00:00]} c4 {[%emt 0:00:04]} 13. Bxf8 {[%emt 0:00:00]} cxd3 {[%emt 0:00:01]} 14. Ba3 {[%emt 0:00:04]} Bf5 {[%emt 0:00:07]} 15. Nd2 {[%emt 0:00:02]} h5 {[%emt 0:00:03]} 16. Qf3 {[%emt 0:00:06]} Be4 {[%emt 0:00:03]} 17. Qf4 {[%emt 0:00:03]} Qa5 {[%emt 0:00:03]} 18. Ra2 {[%emt 0:00:02]} Qxc3 {[%emt 0:00:01]} 19. Rc1 {[%emt 0:00:04]} Qa5 {[%emt 0:00:01]} 20. f3 {[%emt 0:00:03]} Qxa4 {[%emt 0:00:09]} 21. fxe4 {[%emt 0:00:01]} a5 {[%emt 0:00:02]} 22. e5 {[%emt 0:00:02]} Nb4 {[%emt 0:00:02]} 23. Raa1 {[%emt 0:00:01]} Ng4 {[%emt 0:00:02]} 24. Rc7 {[%emt 0:00:03]} Rf8 {[%emt 0:00:01]} 25. h3 {[%emt 0:00:03]} Re8 {[%emt 0:00:06]} 26. Qxf7+ {[%emt 0:00:02]} Kh7 {[%emt 0:00:00]} 27. Qxg7# {[%emt 0:00:01] (Lag: Av=0.06s, max=0.4s)} 1-0

[Event "Test Tournament"]
[Site "Emanuel Lasker Arena"]
[Date "2024.04.09"]
[Round "2"]
[White "CarlsenVomFach"]
[Black "Jamie Fraser"]
[Result "1-0"]
[WhiteElo "2230"]
[BlackElo "2119"]
[Annotator "RC"]
[PlyCount "91"]
[EventDate "2024.04.09"]
[EventType "swiss (blitz)"]
[TimeControl "60"]

1. e4 {[%emt 0:00:01]} e5 {[%emt 0:00:01]} 2. Nf3 {[%emt 0:00:01]} Nc6 {[%emt 0:00:01]} 3. Bb5 {[%emt 0:00:01]} a6 {[%emt 0:00:01]} 4. Ba4 {[%emt 0:00:00]} Nf6 {[%emt 0:00:01]} 5. O-O {[%emt 0:00:01]} b5 {[%emt 0:00:01]} 6. Bb3 {[%emt 0:00:01]} Be7 {[%emt 0:00:01]} 7. Re1 {[%emt 0:00:01]} O-O {[%emt 0:00:01]} 8. c3 {[%emt 0:00:01]} d5 {[%emt 0:00:01]} 9. exd5 {[%emt 0:00:01]} Nxd5 {[%emt 0:00:01]} 10. Nxe5 {[%emt 0:00:01]} Nxe5 {[%emt 0:00:01]} 11. Rxe5 {[%emt 0:00:01]} c6 {[%emt 0:00:01]} 12. d4 {[%emt 0:00:01]} Bd6 {[%emt 0:00:01]} 13. Re1 {[%emt 0:00:01]} Qh4 {[%emt 0:00:01]} 14. g3 {[%emt 0:00:01]} Qh3 {[%emt 0:00:01]} 15. Re4 {[%emt 0:00:00]} g5 {[%emt 0:00:01]} 16. Qf3 {[%emt 0:00:01]} g4 {[%emt 0:00:01]} 17. Qe2 {[%emt 0:00:01]} Bf5 {[%emt 0:00:01]} 18. Nd2 {[%emt 0:00:05]} Nf6 {[%emt 0:00:02]} 19. a3 {[%emt 0:00:03]} Rfe8 {[%emt 0:00:02]} 20. Re3 {[%emt 0:00:01]} h5 {[%emt 0:00:01]} 21. a4 {[%emt 0:00:04]} c5 {[%emt 0:00:03]} 22. axb5 {[%emt 0:00:01]} cxd4 {[%emt 0:00:01]} 23. cxd4 {[%emt 0:00:01]} h4 {[%emt 0:00:03]} 24. bxa6 {[%emt 0:00:01]} hxg3 {[%emt 0:00:01]} 25. hxg3 {[%emt 0:00:01]} Rab8 {[%emt 0:00:03]} 26. a7 {[%emt 0:00:01]} Ra8 {[%emt 0:00:01]} 27. Rxe8+ {[%emt 0:00:01]} Nxe8 {[%emt 0:00:01]} 28. Ne4 {[%emt 0:00:03]} Bxe4 {[%emt 0:00:03]} 29. Qxe4 {[%emt 0:00:01]} Bxg3 {[%emt 0:00:01]} 30. fxg3 {[%emt 0:00:01]} Qxg3+ {[%emt 0:00:01]} 31. Kf1 {[%emt 0:00:00]} Qxb3 {[%emt 0:00:01]} 32. Qxa8 {[%emt 0:00:00]} Qd3+ {[%emt 0:00:02]} 33. Kf2 {[%emt 0:00:02]} g3+ {[%emt 0:00:01]} 34. Ke1 {[%emt 0:00:02]} Kg7 {[%emt 0:00:02]} 35. Qd5 {[%emt 0:00:02]} Qc2 {[%emt 0:00:01]} 36. a8=Q {[%emt 0:00:02]} Qf2+ {[%emt 0:00:01]} 37. Kd1 {[%emt 0:00:01]} Qf1+ {[%emt 0:00:01]} 38. Kd2 {[%emt 0:00:01]} Qf2+ {[%emt 0:00:01]} 39. Kd3 {[%emt 0:00:01]} Qf1+ {[%emt 0:00:01]} 40. Kd2 {[%emt 0:00:01]} Qf2+ {[%emt 0:00:01]} 41. Kd3 {[%emt 0:00:01]} Qf6 {[%emt 0:00:01]} 42. Qxe8 {[%emt 0:00:01]} Qf1+ {[%emt 0:00:01]} 43. Kc3 {[%emt 0:00:01]} Qf6 {[%emt 0:00:01]} 44. Ra7 {[%emt 0:00:01]} g2 {[%emt 0:00:01]} 45. Qxg2+ {[%emt 0:00:00]} Kh7 {[%emt 0:00:01]} 46. Qgg8# {[%emt 0:00:01] (Lag: Av=0.06s, max=0.5s)} 1-0

[Event "Test Tournament"]
[Site "Emanuel Lasker Arena"]
[Date "2024.04.09"]
[Round "2"]
[White "Swindler"]
[Black "Daenerys"]
[Result "1-0"]
[WhiteElo "2226"]
[BlackElo "1922"]
[Annotator "RC"]
[PlyCount "41"]
[EventDate "2024.04.09"]
[EventType "swiss (blitz)"]
[TimeControl "60"]

1. e4 {[%emt 0:00:01]} e5 {[%emt 0:00:01]} 2. Nf3 {[%emt 0:00:00]} Nc6 {[%emt 0:00:01]} 3. Bb5 {[%emt 0:00:01]} f5 {[%emt 0:00:01]} 4. Nc3 {[%emt 0:00:01]} fxe4 {[%emt 0:00:02]} 5. Nxe4 {[%emt 0:00:01]} d5 {[%emt 0:00:01]} 6. Ng3 {[%emt 0:00:01]} Bg4 {[%emt 0:00:02]} 7. h3 {[%emt 0:00:04]} h5 {[%emt 0:00:09]} 8. hxg4 {[%emt 0:00:01]} e4 {[%emt 0:00:03]} 9. Nd4 {[%emt 0:00:01]} Qd6 {[%emt 0:00:03]} 10. d3 {[%emt 0:00:01]} Nh6 {[%emt 0:00:01]} 11. dxe4 {[%emt 0:00:04]} Nxg4 {[%emt 0:00:01]} 12. Rxh5 {[%emt 0:00:01]} Rxh5 {[%emt 0:00:01]} 13. Qxg4 {[%emt 0:00:01]} Rh2 {[%emt 0:00:03]} 14. Bf4 {[%emt 0:00:03]} Qb4+ {[%emt 0:00:01]} 15. c3 {[%emt 0:00:01]} Qxb2 {[%emt 0:00:01]} 16. Bxc6+ {[%emt 0:00:01]} bxc6 {[%emt 0:00:01]} 17. Qe6+ {[%emt 0:00:01]} Be7 {[%emt 0:00:01]} 18. Qxc6+ {[%emt 0:00:01]} Kf7 {[%emt 0:00:01]} 19. Qxd5+ {[%emt 0:00:01]} Kf8 {[%emt 0:00:02]} 20. Ne6+ {[%emt 0:00:01]} Ke8 {[%emt 0:00:01]} 21. Nxc7+ {[%emt 0:00:01] Daenerys resigns (Lag: Av=0.07s, max=0.4s)} 1-0

[Event "Test Tournament"]
[Site "Emanuel Lasker Arena"]
[Date "2024.04.09"]
[Round "2"]
[White "Jed Bartlet"]
[Black "Swindler"]
[Result "1-0"]
[WhiteElo "2159"]
[BlackElo "2226"]
[Annotator "RC"]
[PlyCount "73"]
[EventDate "2024.04.09"]
[EventType "swiss (blitz)"]
[TimeControl "60"]

1. d4 {[%emt 0:00:01]} f5 {[%emt 0:00:01]} 2. Nf3 {[%emt 0:00:01]} Nf6 {[%emt 0:00:01]} 3. c4 {[%emt 0:00:01]} g6 {[%emt 0:00:05]} 4. g3 {[%emt 0:00:01]} a5 {[%emt 0:00:01]} 5. h4 {[%emt 0:00:05]} d6 {[%emt 0:00:01]} 6. Qc2 {[%emt 0:00:04]} Nc6 {[%emt 0:00:01]} 7. Bf4 {[%emt 0:00:01]} Nb4 {[%emt 0:00:01]} 8. Qa4+ {[%emt 0:00:05]} Bd7 {[%emt 0:00:04]} 9. Qb3 {[%emt 0:00:04]} Ne4 {[%emt 0:00:08]} 10. Ng5 {[%emt 0:00:03]} e5 {[%emt 0:00:03]} 11. c5 {[%emt 0:00:01]} Qc8 {[%emt 0:00:03]} 12. c6 {[%emt 0:00:01]} exf4 {[%emt 0:00:01]} 13. Qf7+ {[%emt 0:00:01]} Kd8 {[%emt 0:00:00]} 14. Nxe4 {[%emt 0:00:01]} Bxc6 {[%emt 0:00:01]} 15. Ng5 {[%emt 0:00:03]} Be7 {[%emt 0:00:03]} 16. Ne6+ {[%emt 0:00:01]} Kd7 {[%emt 0:00:01]} 17. d5 {[%emt 0:00:02]} Bxd5 {[%emt 0:00:01]} 18. e4 {[%emt 0:00:01]} Nc2+ {[%emt 0:00:02]} 19. Kd1 {[%emt 0:00:01]} Bxe6 {[%emt 0:00:01]} 20. Qg7 {[%emt 0:00:03]} Nb4 {[%emt 0:00:01]} 21. Nc3 {[%emt 0:00:02]} Qg8 {[%emt 0:00:02]} 22. Bb5+ {[%emt 0:00:02]} c6 {[%emt 0:00:02]} 23. Qd4 {[%emt 0:00:02]} fxg3 {[%emt 0:00:01]} 24. Na4 {[%emt 0:00:01]} g2 {[%emt 0:00:03]} 25. Nb6+ {[%emt 0:00:01]} Kc7 {[%emt 0:00:01]} 26. Rg1 {[%emt 0:00:01]} fxe4 {[%emt 0:00:02]} 27. Nxa8+ {[%emt 0:00:01]} Qxa8 {[%emt 0:00:01]} 28. Rxg2 {[%emt 0:00:01]} d5 {[%emt 0:00:03]} 29. a3 {[%emt 0:00:01]} Qf8 {[%emt 0:00:03]} 30. axb4 {[%emt 0:00:01]} Qf3+ {[%emt 0:00:02]} 31. Be2 {[%emt 0:00:01]} Qxg2 {[%emt 0:00:01]} 32. Qxh8 {[%emt 0:00:01]} Qh1+ {[%emt 0:00:01]} 33. Kd2 {[%emt 0:00:01]} Qxa1 {[%emt 0:00:01]} 34. Qg7 {[%emt 0:00:01]} Kb6 {[%emt 0:00:01]} 35. Qxe7 {[%emt 0:00:01]} Qxb2+ {[%emt 0:00:01]} 36. Ke3 {[%emt 0:00:01]} d4+ {[%emt 0:00:01] '} 37. Kxe4 {[%emt 0:00:00] (Lag: Av=0.08s, max=0.9s)} 1-0

[Event "Test Tournament"]
[Site "Emanuel Lasker Arena"]
[Date "2024.04.09"]
[Round "2"]
[White "Chartwell"]
[Black "Stratospheric"]
[Result "0-1"]
[WhiteElo "2149"]
[BlackElo "1620"]
[Annotator "RC"]
[PlyCount "92"]
[EventDate "2024.04.09"]
[EventType "swiss (blitz)"]
[TimeControl "60"]

1. d4 {[%emt 0:00:01]} d5 {[%emt 0:00:01]} 2. c4 {[%emt 0:00:01]} dxc4 {[%emt 0:00:01]} 3. Nf3 {[%emt 0:00:01]} Nf6 {[%emt 0:00:01]} 4. e3 {[%emt 0:00:01]} e6 {[%emt 0:00:01]} 5. Bxc4 {[%emt 0:00:01]} Nbd7 {[%emt 0:00:01]} 6. Nc3 {[%emt 0:00:01]} a6 {[%emt 0:00:01]} 7. e4 {[%emt 0:00:01]} c5 {[%emt 0:00:01]} 8. e5 {[%emt 0:00:01]} cxd4 {[%emt 0:00:01]} 9. Qxd4 {[%emt 0:00:01]} Bc5 {[%emt 0:00:04]} 10. Qh4 {[%emt 0:00:01]} Nd5 {[%emt 0:00:04]} 11. Qxd8+ {[%emt 0:00:01]} Kxd8 {[%emt 0:00:01]} 12. Nxd5 {[%emt 0:00:01]} exd5 {[%emt 0:00:01]} 13. Bxd5 {[%emt 0:00:01]} f6 {[%emt 0:00:03]} 14. e6 {[%emt 0:00:04]} Nb6 {[%emt 0:00:04]} 15. Bb3 {[%emt 0:00:05]} Re8 {[%emt 0:00:05]} 16. Bf4 {[%emt 0:00:06]} Bxe6 {[%emt 0:00:01]} 17. O-O-O+ {[%emt 0:00:03]} Bd7 {[%emt 0:00:02]} 18. Bf7 {[%emt 0:00:02]} Re2 {[%emt 0:00:03]} 19. Rhf1 {[%emt 0:00:03]} Rxf2 {[%emt 0:00:01]} 20. Rxf2 {[%emt 0:00:01]} Bxf2 {[%emt 0:00:01]} 21. Be6 {[%emt 0:00:02]} Bc5 {[%emt 0:00:02]} 22. Kb1 {[%emt 0:00:02]} Rc8 {[%emt 0:00:02]} 23. g4 {[%emt 0:00:02]} Ke7 {[%emt 0:00:02]} 24. Bf5 {[%emt 0:00:02]} Be6 {[%emt 0:00:01]} 25. Nh4 {[%emt 0:00:01]} Kf7 {[%emt 0:00:01]} 26. g5 {[%emt 0:00:01]} fxg5 {[%emt 0:00:01]} 27. Bxg5 {[%emt 0:00:01]} Bxf5+ {[%emt 0:00:01]} 28. Nxf5 {[%emt 0:00:01]} Re8 {[%emt 0:00:01]} 29. h4 {[%emt 0:00:01]} Nc4 {[%emt 0:00:01]} 30. b3 {[%emt 0:00:01]} Ne3 {[%emt 0:00:01]} 31. Bxe3 {[%emt 0:00:01]} Bxe3 {[%emt 0:00:01]} 32. Nd6+ {[%emt 0:00:01]} Kf8 {[%emt 0:00:01]} 33. Nxe8 {[%emt 0:00:00]} Kxe8 {[%emt 0:00:00]} 34. Rd3 {[%emt 0:00:01]} Bc5 {[%emt 0:00:01]} 35. Rd5 {[%emt 0:00:01]} Bf2 {[%emt 0:00:01]} 36. Rg5 {[%emt 0:00:00]} Kf7 {[%emt 0:00:01]} 37. Rf5+ {[%emt 0:00:01]} Ke8 {[%emt 0:00:01]} 38. Rxf2 {[%emt 0:00:00]} g6 {[%emt 0:00:00]} 39. Rf6 {[%emt 0:00:01]} Ke7 {[%emt 0:00:01]} 40. Rb6 {[%emt 0:00:01]} Kf8 {[%emt 0:00:01]} 41. Rxb7 {[%emt 0:00:01]} h6 {[%emt 0:00:01]} 42. Kc2 {[%emt 0:00:01]} Ke8 {[%emt 0:00:00]} 43. Ra7 {[%emt 0:00:01]} g5 {[%emt 0:00:00]} 44. h5 {[%emt 0:00:01]} g4 {[%emt 0:00:01]} 45. Rg7 {[%emt 0:00:01]} a5 {[%emt 0:00:00]} 46. Kd3 {[%emt 0:00:00] .} a4 {[%emt 0:00:00]} 0-1

[Event "Test Tournament"]
[Site "Emanuel Lasker Arena"]
[Date "2024.04.09"]
[Round "2"]
[White "Jamie Fraser"]
[Black "Endspielexperte"]
[Result "0-1"]
[WhiteElo "2119"]
[BlackElo "1620"]
[Annotator "RC"]
[PlyCount "88"]
[EventDate "2024.04.09"]
[EventType "swiss (blitz)"]
[TimeControl "60"]

1. e4 {[%emt 0:00:00]} e5 {[%emt 0:00:01]} 2. Nf3 {[%emt 0:00:01]} Nc6 {[%emt 0:00:01]} 3. Bb5 {[%emt 0:00:01]} Nf6 {[%emt 0:00:01]} 4. O-O {[%emt 0:00:01]} Nxe4 {[%emt 0:00:01]} 5. d4 {[%emt 0:00:01]} Nd6 {[%emt 0:00:01]} 6. Bxc6 {[%emt 0:00:01]} dxc6 {[%emt 0:00:01]} 7. dxe5 {[%emt 0:00:01]} Nf5 {[%emt 0:00:01]} 8. Qxd8+ {[%emt 0:00:01]} Kxd8 {[%emt 0:00:01]} 9. Rd1+ {[%emt 0:00:01]} Ke8 {[%emt 0:00:01]} 10. Nc3 {[%emt 0:00:06]} Be6 {[%emt 0:00:01]} 11. Ng5 {[%emt 0:00:01]} Bc8 {[%emt 0:00:01]} 12. Nf3 {[%emt 0:00:01]} Be6 {[%emt 0:00:01]} 13. Ng5 {[%emt 0:00:01]} Bc4 {[%emt 0:00:01]} 14. b3 {[%emt 0:00:01]} Bb4 {[%emt 0:00:01]} 15. Bb2 {[%emt 0:00:01]} Bxc3 {[%emt 0:00:03]} 16. Bxc3 {[%emt 0:00:01]} Bd5 {[%emt 0:00:03]} 17. e6 {[%emt 0:00:03]} fxe6 {[%emt 0:00:01]} 18. g4 {[%emt 0:00:05]} h6 {[%emt 0:00:03]} 19. gxf5 {[%emt 0:00:01]} hxg5 {[%emt 0:00:01]} 20. fxe6 {[%emt 0:00:01]} Rh4 {[%emt 0:00:03]} 21. Bxg7 {[%emt 0:00:01]} Bxe6 {[%emt 0:00:01]} 22. Rd3 {[%emt 0:00:02]} Rd8 {[%emt 0:00:03]} 23. Rad1 {[%emt 0:00:03]} Rd5 {[%emt 0:00:03]} 24. Bf6 {[%emt 0:00:02]} Rxd3 {[%emt 0:00:02]} 25. Rxd3 {[%emt 0:00:00]} Bf5 {[%emt 0:00:02]} 26. Rf3 {[%emt 0:00:02]} Rf4 {[%emt 0:00:01]} 27. Be7 {[%emt 0:00:02]} Rxf3 {[%emt 0:00:01]} 28. Bxg5 {[%emt 0:00:01]} c5 {[%emt 0:00:02]} 29. h4 {[%emt 0:00:02]} Rh3 {[%emt 0:00:02]} 30. f4 {[%emt 0:00:01]} c4 {[%emt 0:00:01]} 31. Bf6 {[%emt 0:00:01]} cxb3 {[%emt 0:00:01]} 32. h5 {[%emt 0:00:01]} bxa2 {[%emt 0:00:01]} 33. Bb2 {[%emt 0:00:01]} Bxc2 {[%emt 0:00:01]} 34. Be5 {[%emt 0:00:01]} Bf5 {[%emt 0:00:01]} 35. Bf6 {[%emt 0:00:01]} b5 {[%emt 0:00:01]} 36. Be5 {[%emt 0:00:01]} c5 {[%emt 0:00:01]} 37. Bb2 {[%emt 0:00:01]} b4 {[%emt 0:00:01]} 38. Bf6 {[%emt 0:00:01]} c4 {[%emt 0:00:01]} 39. Kg2 {[%emt 0:00:01]} c3 {[%emt 0:00:01]} 40. Bh4 {[%emt 0:00:01]} c2 {[%emt 0:00:01]} 41. Be7 {[%emt 0:00:01]} a1=Q {[%emt 0:00:01]} 42. Bxb4 {[%emt 0:00:01]} c1=Q {[%emt 0:00:00]} 43. h6 {[%emt 0:00:01]} Qab2+ {[%emt 0:00:01]} 44. Bd2 {[%emt 0:00:01]} Qbxd2# {[%emt 0:00:00] (Lag: Av=0.07s, max=0.5s)} 0-1

[Event "Test Tournament"]
[Site "Emanuel Lasker Arena"]
[Date "2024.04.09"]
[Round "2"]
[White "Irina"]
[Black "Karpovs Shadow"]
[Result "1-0"]
[WhiteElo "2113"]
[BlackElo "1620"]
[Annotator "RC"]
[PlyCount "81"]
[EventDate "2024.04.09"]
[EventType "swiss (blitz)"]
[TimeControl "60"]

1. d4 {[%emt 0:00:00]} Nf6 {[%emt 0:00:01]} 2. c4 {[%emt 0:00:01]} e6 {[%emt 0:00:01]} 3. g3 {[%emt 0:00:01]} d5 {[%emt 0:00:01]} 4. Bg2 {[%emt 0:00:01]} Bb4+ {[%emt 0:00:01]} 5. Nd2 {[%emt 0:00:01]} O-O {[%emt 0:00:01]} 6. Ngf3 {[%emt 0:00:02]} c5 {[%emt 0:00:01]} 7. cxd5 {[%emt 0:00:01]} exd5 {[%emt 0:00:01]} 8. dxc5 {[%emt 0:00:01]} Re8 {[%emt 0:00:02]} 9. O-O {[%emt 0:00:03]} Bxc5 {[%emt 0:00:01]} 10. Ng5 {[%emt 0:00:04]} Ng4 {[%emt 0:00:04]} 11. Ndf3 {[%emt 0:00:04]} Bf5 {[%emt 0:00:07]} 12. Bf4 {[%emt 0:00:03]} Nc6 {[%emt 0:00:03]} 13. Qb3 {[%emt 0:00:03]} Rxe2 {[%emt 0:00:03]} 14. Qxb7 {[%emt 0:00:01]} Qe8 {[%emt 0:00:03]} 15. Rac1 {[%emt 0:00:03]} Bc2 {[%emt 0:00:03]} 16. Nd2 {[%emt 0:00:02]} Rxf2 {[%emt 0:00:01]} 17. Rxf2 {[%emt 0:00:00]} Bxf2+ {[%emt 0:00:01]} 18. Kh1 {[%emt 0:00:01]} h6 {[%emt 0:00:02]} 19. Bxd5 {[%emt 0:00:01]} Kh8 {[%emt 0:00:01]} 20. Nxf7+ {[%emt 0:00:01]} Kh7 {[%emt 0:00:01]} 21. Rxc2 {[%emt 0:00:01]} Qe1+ {[%emt 0:00:01]} 22. Kg2 {[%emt 0:00:01]} Qg1+ {[%emt 0:00:01]} 23. Kh3 {[%emt 0:00:01]} Qxh2+ {[%emt 0:00:01]} 24. Kxg4 {[%emt 0:00:01]} h5+ {[%emt 0:00:01]} 25. Kg5 {[%emt 0:00:01]} Bxg3 {[%emt 0:00:02]} 26. Be4+ {[%emt 0:00:02]} g6 {[%emt 0:00:01]} 27. Bxg6+ {[%emt 0:00:01]} Kg7 {[%emt 0:00:01]} 28. Nh6+ {[%emt 0:00:01]} Kf8 {[%emt 0:00:01]} 29. Qg7+ {[%emt 0:00:01]} Kxg7 {[%emt 0:00:01]} 30. Nf5+ {[%emt 0:00:01]} Kh8 {[%emt 0:00:01]} 31. Bxg3 {[%emt 0:00:01]} Qe2 {[%emt 0:00:01]} 32. Rxc6 {[%emt 0:00:01]} Qxd2+ {[%emt 0:00:01]} 33. Kxh5 {[%emt 0:00:01]} Qxb2 {[%emt 0:00:01]} 34. Kh4 {[%emt 0:00:01]} Rf8 {[%emt 0:00:01]} 35. Bd6 {[%emt 0:00:01]} Qg2 {[%emt 0:00:01]} 36. Bxf8 {[%emt 0:00:01]} Qh2+ {[%emt 0:00:01]} 37. Kg4 {[%emt 0:00:01]} Qg2+ {[%emt 0:00:01]} 38. Kf4 {[%emt 0:00:01]} Qh2+ {[%emt 0:00:01]} 39. Ke3 {[%emt 0:00:01]} Qxa2 {[%emt 0:00:01]} 40. Bg7+ {[%emt 0:00:01]} Kg8 {[%emt 0:00:01]} 41. Rc8# {[%emt 0:00:01] (Lag: Av=0.05s, max=0.1s)} 1-0